fUST/lending_fUST_20260303
["ID","MTS","AMOUNT","RATE_DAILY","PERIOD"]
[407519878,1772529038406,-500.0,9.783e-05,2]
[407519880,1772529038415,-500.0,9.783e-05,2]
[407519882,1772529038426,-500.0,9.783e-05,2]
[407519884,1772529038436,-500.0,9.783e-05,2]
[407519886,1772529038445,-550.0,9.783e-05,2]
[407519888,1772529038455,-500.0,9.783e-05,2]
[407519890,1772529038464,-500.0,9.783e-05,2]
[407519892,1772529038474,-555.51758165,9.783e-05,2]
[407519894,1772529038484,-32988.37833026,9.784e-05,2]
[407519896,1772529038493,-3155.33645554,9.785e-05,2]
[407519897,1772529038503,-316.70727423,9.787e-05,2]
[407519899,1772529038513,-500.0,9.788e-05,2]
[407519902,1772529038523,-500.0,9.788e-05,2]
[407519903,1772529038533,-500.0,9.788e-05,2]
[407519905,1772529038543,-500.0,9.788e-05,2]
[407519907,1772529038552,-500.0,9.788e-05,2]
[407519909,1772529038562,-500.0,9.788e-05,2]
[407519912,1772529038578,-500.0,9.788e-05,2]
[407519913,1772529038596,-500.0,9.788e-05,2]
[407519915,1772529038606,-500.0,9.788e-05,2]
[407519917,1772529038615,-162.98569018,9.821e-05,2]
[407519919,1772529038624,-3155.33645552,9.985e-05,2]
[407519922,1772529038634,-1621.21,0.0001,2]
[407519923,1772529038644,-3155.33645552,0.00010085,2]
[407519925,1772529038655,-1952.179564,0.00010173,2]
[407519926,1772529038665,-3155.33645552,0.00010284,2]
[407519927,1772529038678,-500.0,0.00010291,2]
[407519928,1772529038687,-366.25230006,0.00010291,2]
[407519929,1772529038697,-418.57405721,0.00010291,2]
[407519930,1772529038706,-653.36794243,0.00010291,2]
[407519931,1772529038716,-367.37291061,0.00010318,2]
[407519932,1772529038726,-500.0,0.00010346,2]
[407519933,1772529038737,-150.0,0.00010364,2]
[407519934,1772529038750,-500.0,0.00010401,2]
[407519935,1772529038760,-500.0,0.00010455,2]
[407519936,1772529038770,-3155.33645552,0.00010484,2]
[407519937,1772529038781,-500.0,0.0001051,2]
[407519938,1772529038791,-3956.3773792,0.00010522,2]
[407519939,1772529038800,-500.0,0.00010565,2]
[407519940,1772529038811,-362.86874545,0.00010573,2]
[407519941,1772529038822,-8875.73889216,0.00010584,2]
[407519942,1772529038831,-11515.82730316,0.00010584,2]
[407519943,1772529038841,-1952.179564,0.00010584,2]
[407519944,1772529038850,-12022.13882567,0.00010591,2]
[407519945,1772529038859,-664.07789499,0.00010605,2]
[407519946,1772529038869,-426.91477339,0.00010618,2]
[407519947,1772529038878,-338.0,0.0001062,2]
[407519948,1772529038888,-500.0,0.0001062,2]
[407519949,1772529038898,-160.0,0.00010626,3]
[407519950,1772529038910,-166.0,0.00010638,2]
[407519951,1772529038921,-689.0,0.00010638,2]
[407519952,1772529038931,-689.0,0.00010638,2]
[407519953,1772529038942,-166.0,0.00010638,2]
[407519954,1772529038952,-229.5817037,0.00010638,2]
[407519955,1772529038963,-496.69762404,0.00010638,2]
[407519956,1772529038973,-338.0,0.00010638,2]
[407519957,1772529038983,-163.43040921,0.00010638,2]
[407519958,1772529038993,-206.28983328,0.00010655,2]
[407519959,1772529039002,-500.0,0.00010675,2]
[407519960,1772529039012,-300.0,0.00010687,2]
[407519961,1772529039021,-300.0,0.00010687,2]
[407519962,1772529039032,-300.0,0.00010687,2]
[407519963,1772529039043,-300.0,0.00010687,2]
[407519964,1772529039054,-300.0,0.00010687,2]
[407519965,1772529039064,-300.0,0.00010687,2]
[407519966,1772529039075,-300.0,0.00010687,2]
[407519967,1772529039085,-300.0,0.00010687,2]
[407519968,1772529039096,-300.0,0.00010687,2]
[407519969,1772529039107,-300.0,0.00010687,2]
[407519970,1772529039115,-300.0,0.00010687,2]
[407519971,1772529039125,-300.0,0.00010687,2]
[407519972,1772529039135,-300.0,0.00010687,2]
[407519973,1772529039145,-300.0,0.00010687,2]
[407519974,1772529039158,-300.0,0.00010687,2]
[407519975,1772529039168,-35595.42159456,0.00010691,2]
[407520016,1772529042941,-79200.7309788,0.00010584,2]
[407520017,1772529042953,-666.48382913,0.00010584,2]
[407520024,1772529045792,-1449.1617561,0.00010584,2]
[407520025,1772529625131,609.64702698,9.501e-05,2]
[407520170,1772530231924,-556.0,9.684e-05,2]
[407520171,1772530231933,-357.29059484,9.708e-05,2]
[407520172,1772530231943,-237.0,9.975e-05,2]
[407520173,1772530231952,-300.0,9.975e-05,2]
[407520174,1772530231961,-300.0,9.976e-05,2]
[407520175,1772530231972,-300.0,9.976e-05,2]
[407520176,1772530231981,-1200.0,9.976e-05,2]
[407520177,1772530231990,-12050.06464465,9.977e-05,2]
[407520178,1772530231999,-300.0,9.977e-05,2]
[407520179,1772530232009,-300.0,9.977e-05,2]
[407520180,1772530232018,-300.0,9.977e-05,2]
[407520181,1772530232027,-300.0,9.977e-05,2]
[407520182,1772530232036,-300.0,9.977e-05,2]
[407520183,1772530232045,-300.0,9.977e-05,2]
[407520184,1772530232054,-300.0,9.977e-05,2]
[407520185,1772530232063,-300.0,9.977e-05,2]
[407520187,1772530232072,-300.0,9.977e-05,2]
[407520189,1772530232082,-300.0,9.977e-05,2]
[407520191,1772530232093,-300.0,9.977e-05,2]
[407520193,1772530232102,-300.0,9.977e-05,2]
[407520194,1772530232112,-300.0,9.977e-05,2]
[407520195,1772530232131,-300.0,9.977e-05,2]
[407520196,1772530232141,-300.0,9.977e-05,2]
[407520197,1772530232150,-183.103,9.977e-05,2]
[407520199,1772530232163,-6783.03931922,0.0001,2]
[407520207,1772530232243,-334.005,0.0001,2]
[407520225,1772530238067,-26970.61618943,0.0001,2]
[407520226,1772530238079,-3308.34040225,0.0001,2]
[407520235,1772530240592,-5421.14393648,0.0001,2]
[407520238,1772530240603,-421.08573001,0.0001,2]
[407520240,1772530240614,-4630.92129051,0.0001,2]
[407520242,1772530240627,-12953.11010605,0.0001,2]
[407520494,1772530243082,-782.10722471,9.9e-05,2]
[407520496,1772530243092,-418.09948052,9.9e-05,2]
[407520500,1772530243139,-455.43626761,9.9e-05,2]
[407520501,1772530243150,-6794.86545894,0.0001,2]
[407520502,1772530243685,-1219.3137,0.0001,2]
[407520513,1772530246629,-2398.71261736,0.0001,2]
[407520514,1772530246744,-9623.01682153,0.0001,2]
[407520517,1772530260132,205.9757923,9.162e-05,2]
[407520518,1772530267815,7869.6263778,9.098e-05,2]
[407520519,1772530441970,3412.31971965,9.501e-05,2]
[407520521,1772530802629,157.32,6.9e-05,2]
[407520522,1772530802914,157.32,7.1e-05,2]
[407520523,1772530803245,157.32,7.4e-05,2]
[407520524,1772530804145,157.32,7.6e-05,2]
[407520525,1772530804487,157.32,7.8e-05,2]
[407520526,1772530804815,157.32,8.1e-05,2]
[407520527,1772530805103,157.32,8.3e-05,2]
[407520528,1772530805539,157.32,8.6e-05,2]
[407520529,1772530805833,157.32,8.8e-05,2]
[407520530,1772530806478,157.32,9e-05,2]
[407520531,1772530806596,157.32,9.3e-05,2]
[407520532,1772530806719,157.32,9.5e-05,2]
[407520533,1772530845972,298.42025008,9.501e-05,2]
[407520534,1772530853965,3998.34141348,9.501e-05,2]
[407520539,1772530972861,981.01,9.501e-05,2]
[407520540,1772531353101,-554.0,9.589e-05,2]
[407520541,1772531353123,-354.3737515,9.608e-05,2]
[407520542,1772531402327,52.8067774,6.9e-05,2]
[407520543,1772531402357,118.2632226,6.9e-05,2]
[407520544,1772531402611,171.07,9.5e-05,2]
[407520545,1772531414059,414.70713766,9.498e-05,2]
[407520546,1772531417030,647.33192269,9.498e-05,2]
[407520553,1772531432236,-200.0,9.762e-05,2]
[407520554,1772531432246,-311.57332803,9.762e-05,2]
[407520558,1772531432386,-245.42667197,9.762e-05,2]
[407520560,1772531432396,-403.89832803,9.992e-05,2]
[407520855,1772531438067,-5000.0,9.664e-05,2]
[407520857,1772531438077,-796.10167197,9.992e-05,2]
[407520859,1772531438086,-300.0,9.993e-05,2]
[407520860,1772531438096,-300.0,9.993e-05,2]
[407520862,1772531438105,-300.0,9.993e-05,2]
[407520864,1772531438114,-12686.2697717,9.998e-05,2]
[407520866,1772531438124,-267.5573025,9.998e-05,2]
[407520867,1772531438133,-305.77977428,9.998e-05,2]
[407520869,1772531438142,-477.30311642,9.998e-05,2]
[407520871,1772531438151,-500.0,9.998e-05,2]
[407520872,1772531438161,-500.0,9.998e-05,2]
[407520874,1772531438170,-500.0,9.998e-05,2]
[407520876,1772531438178,-500.0,9.998e-05,2]
[407520877,1772531438187,-500.0,9.998e-05,2]
[407520880,1772531438197,-500.0,9.998e-05,2]
[407520883,1772531438206,-500.0,9.998e-05,2]
[407520885,1772531438215,-500.0,9.998e-05,2]
[407520886,1772531438225,-500.0,9.998e-05,2]
[407520888,1772531438234,-500.0,9.998e-05,2]
[407520890,1772531438244,-500.0,9.998e-05,2]
[407520892,1772531438254,-500.0,9.998e-05,2]
[407520894,1772531438263,-500.0,9.998e-05,2]
[407520895,1772531438272,-500.0,9.998e-05,2]
[407520897,1772531438281,-500.0,9.998e-05,2]
[407520899,1772531438290,-500.0,9.998e-05,2]
[407520901,1772531438299,-500.0,9.998e-05,2]
[407520902,1772531438309,-500.0,9.998e-05,2]
[407520904,1772531438318,-617.05749819,9.998e-05,2]
[407520906,1772531438327,-500.0,9.998e-05,2]
[407520908,1772531438337,-500.0,9.998e-05,2]
[407520909,1772531438346,-500.0,9.998e-05,2]
[407520911,1772531438356,-500.0,9.998e-05,2]
[407520913,1772531438365,-500.0,9.998e-05,2]
[407520915,1772531438375,-500.0,9.998e-05,2]
[407520916,1772531438383,-500.0,9.998e-05,2]
[407520918,1772531438393,-500.0,9.998e-05,2]
[407520920,1772531438403,-500.0,9.998e-05,2]
[407520922,1772531438412,-217.91765856,9.998e-05,2]
[407520924,1772531438421,-500.0,9.998e-05,2]
[407520925,1772531438431,-500.0,9.998e-05,2]
[407520927,1772531438440,-500.0,9.998e-05,2]
[407520929,1772531438449,-500.0,9.998e-05,2]
[407520931,1772531438459,-500.0,9.998e-05,2]
[407520932,1772531438473,-500.0,9.998e-05,2]
[407520934,1772531438484,-500.0,9.998e-05,2]
[407520936,1772531438493,-500.0,9.998e-05,2]
[407520938,1772531438504,-500.0,9.998e-05,2]
[407520940,1772531438514,-500.0,9.998e-05,2]
[407520941,1772531438523,-500.0,9.998e-05,2]
[407520943,1772531438533,-500.0,9.998e-05,2]
[407520964,1772531438775,-500.0,9.998e-05,2]
[407520965,1772531438786,-500.0,9.998e-05,2]
[407520967,1772531438797,-500.0,9.998e-05,2]
[407520969,1772531438806,-500.0,9.998e-05,2]
[407520971,1772531438816,-500.0,9.998e-05,2]
[407520974,1772531438827,-500.0,9.998e-05,2]
[407520976,1772531438837,-500.0,9.998e-05,2]
[407520978,1772531438847,-500.0,9.998e-05,2]
[407520980,1772531438857,-500.0,9.998e-05,2]
[407520982,1772531438865,-292.96733142,9.998e-05,2]
[407520983,1772531438875,-500.0,9.998e-05,2]
[407520985,1772531438884,-500.0,9.998e-05,2]
[407520987,1772531438893,-500.0,9.998e-05,2]
[407520989,1772531438902,-500.0,9.998e-05,2]
[407520991,1772531438911,-500.0,9.999e-05,2]
[407520993,1772531438921,-22670.08802469,0.0001,2]
[407520995,1772531438930,-6177.86669343,0.00010001,3]
[407520997,1772531438939,-2090.82959371,0.00010055,2]
[407520999,1772531438947,-187.18050474,0.00010076,2]
[407521001,1772531438957,-10681.17112873,0.0001008,3]
[407521003,1772531438967,-600.0,0.00010176,2]
[407521005,1772531438976,-11997.56751976,0.0001018,3]
[407521007,1772531438990,-300.0,0.00010199,2]
[407521009,1772531439000,-300.0,0.00010199,2]
[407521010,1772531439009,-300.0,0.00010199,2]
[407521011,1772531439019,-300.0,0.00010199,2]
[407521012,1772531439029,-300.0,0.00010199,2]
[407521013,1772531439038,-300.0,0.00010199,2]
[407521014,1772531439048,-300.0,0.00010199,2]
[407521015,1772531439057,-300.0,0.00010199,2]
[407521016,1772531439067,-300.0,0.00010199,2]
[407521017,1772531439077,-300.0,0.00010199,2]
[407521018,1772531439087,-300.0,0.00010199,2]
[407521019,1772531439097,-300.0,0.00010199,2]
[407521020,1772531439107,-300.0,0.00010199,2]
[407521021,1772531439116,-300.0,0.00010199,2]
[407521022,1772531439126,-300.0,0.00010199,2]
[407521023,1772531439136,-187.18050473,0.00010205,2]
[407521024,1772531439146,-500.0,0.00010273,2]
[407521025,1772531439155,-13313.96391084,0.0001028,3]
[407521026,1772531439164,-1521.7928498,0.00010328,2]
[407521027,1772531439173,-13984.1944421,0.00010328,2]
[407521028,1772531439183,-187.18050473,0.00010334,2]
[407521029,1772531439192,-14917.90852072,0.0001038,3]
[407521030,1772531439202,-150.0,0.00010401,2]
[407521031,1772531439211,-500.0,0.00010401,2]
[407521032,1772531439220,-250.0,0.00010401,2]
[407521033,1772531439229,-150.0,0.00010401,2]
[407521034,1772531439239,-150.0,0.00010401,2]
[407521035,1772531439249,-150.0,0.00010401,2]
[407521036,1772531439258,-185.4062112,0.00010401,2]
[407521037,1772531439267,-150.0,0.00010401,2]
[407521038,1772531439276,-150.0,0.00010456,2]
[407521039,1772531439285,-500.0,0.00010456,2]
[407521040,1772531439295,-150.0,0.00010456,2]
[407521041,1772531439304,-150.0,0.00010456,2]
[407521042,1772531439313,-150.0,0.00010456,2]
[407521043,1772531439323,-187.18050473,0.00010462,2]
[407521044,1772531439332,-533.15390513,0.000105,3]
[407521045,1772531439342,-1964.29677177,0.000105,3]
[407521046,1772531439351,-1604.01088801,0.000105,3]
[407521047,1772531439361,-521.70407087,0.000105,3]
[407521048,1772531439370,-567.94662304,0.0001051,2]
[407521049,1772531439380,-187.58345275,0.0001051,2]
[407521050,1772531439391,-200.0,0.00010511,2]
[407521051,1772531439401,-419.05959066,0.00010511,2]
[407521052,1772531439410,-200.0,0.00010511,2]
[407521053,1772531439419,-200.0,0.00010511,2]
[407521054,1772531439429,-200.0,0.00010511,2]
[407521055,1772531439439,-151.0,0.00010526,2]
[407521056,1772531439449,-22909.95939301,0.00010584,2]
[407521057,1772531439460,-187.18050473,0.00010591,2]
[407521058,1772531439474,-10819.92494313,0.00010591,2]
[407521059,1772531439485,-5604.50332233,0.00010603,2]
[407521060,1772531439494,-1079.7635492,0.00010603,2]
[407521061,1772531439505,-420.78616315,0.00010644,2]
[407521062,1772531439516,-337.31256474,0.0001067,2]
[407521063,1772531439526,-61171.80518537,0.00010691,2]
[407521101,1772531440482,-718.65770678,0.00010584,2]
[407521103,1772531440492,-439.03176579,0.00010691,2]
[407521645,1772531446195,-295.96102886,0.00010584,2]
[407529750,1772531636334,3333.92027797,9.501e-05,2]
[407529751,1772531658640,1906.12921831,9.501e-05,2]
[407529754,1772532003242,212.85,6.9e-05,2]
[407529755,1772532043667,-485.91940999,9.633e-05,2]
[407529756,1772532043686,-69.08059001,9.633e-05,2]
[407529757,1772532043695,-188.3781944,9.633e-05,2]
[407529758,1772532043705,-297.54121559,9.633e-05,2]
[407529759,1772532065842,289.0,9.5e-05,2]
[407529807,1772532636604,-555.0,9.633e-05,2]
[407529808,1772532636614,-125.42367867,9.633e-05,2]
[407529809,1772532636624,-356.08636419,9.656e-05,2]
[407529810,1772532636633,-633.54844609,9.69e-05,2]
[407529811,1772532636643,-500.0,9.69e-05,2]
[407529812,1772532636652,-500.0,9.69e-05,2]
[407529813,1772532636662,-1003.56732,9.962e-05,2]
[407529814,1772532636672,-1200.0,9.996e-05,2]
[407529815,1772532636682,-3038.90416791,9.997e-05,2]
[407529816,1772532636692,-247.0,9.997e-05,2]
[407529817,1772532636703,-265.0,9.997e-05,2]
[407529818,1772532636713,-300.0,9.997e-05,2]
[407529819,1772532636723,-300.0,9.998e-05,2]
[407529820,1772532636733,-176.926,9.999e-05,2]
[407529821,1772532636742,-500.0,9.999e-05,2]
[407529822,1772532636751,-500.0,9.999e-05,2]
[407529823,1772532636761,-500.0,9.999e-05,2]
[407529824,1772532636776,-500.0,9.999e-05,2]
[407529825,1772532636785,-500.0,9.999e-05,2]
[407529826,1772532636794,-500.0,9.999e-05,2]
[407529827,1772532636804,-500.0,9.999e-05,2]
[407529828,1772532636815,-500.0,9.999e-05,2]
[407529829,1772532636825,-195.17176837,9.999e-05,2]
[407529830,1772532636837,-304.82823163,9.999e-05,2]
[407529831,1772532636848,-500.0,9.999e-05,2]
[407529832,1772532636858,-43.425093,9.999e-05,2]
[407529870,1772532638401,-456.574907,9.999e-05,2]
[407529872,1772532638410,-500.0,9.999e-05,2]
[407529874,1772532638419,-500.0,9.999e-05,2]
[407529876,1772532638430,-500.0,9.999e-05,2]
[407529878,1772532638439,-500.0,9.999e-05,2]
[407529880,1772532638448,-379.29673314,9.999e-05,2]
[407529882,1772532638458,-500.0,9.999e-05,2]
[407529884,1772532638468,-500.0,9.999e-05,2]
[407529886,1772532638477,-500.0,9.999e-05,2]
[407529888,1772532638487,-500.0,9.999e-05,2]
[407529890,1772532638496,-500.0,9.999e-05,2]
[407529892,1772532638505,-500.0,9.999e-05,2]
[407529894,1772532638515,-500.0,9.999e-05,2]
[407529896,1772532638524,-500.0,9.999e-05,2]
[407529898,1772532638534,-213.67174212,9.999e-05,2]
[407529900,1772532638544,-500.0,9.999e-05,2]
[407529901,1772532638553,-500.0,9.999e-05,2]
[407529903,1772532638563,-500.0,9.999e-05,2]
[407529905,1772532638572,-500.0,9.999e-05,2]
[407529907,1772532638582,-422.18964646,9.999e-05,2]
[407529909,1772532638599,-524.21307317,9.999e-05,2]
[407529911,1772532638621,-500.0,9.999e-05,2]
[407529913,1772532638640,-290.78416647,9.999e-05,2]
[407529915,1772532638651,-500.0,9.999e-05,2]
[407529917,1772532638662,-629.64171102,9.999e-05,2]
[407529919,1772532638672,-3885.69384638,0.0001,2]
[407530044,1772532644476,-6299.06783168,0.0001,2]
[407530058,1772532644664,-19.61592916,0.0001,2]
[407530099,1772532646363,-7634.04492857,0.0001,2]
[407530105,1772532950127,10000.0,9.5e-05,2]
[407530107,1772533084391,123881.70549707,9.5e-05,2]
[407530109,1772533357216,300.0,9.071e-05,2]
[407530111,1772533768152,-1021.35726944,9.606e-05,2]
[407530112,1772533802966,153.24,6.9e-05,2]
[407530113,1772533803268,153.24,7.1e-05,2]
[407530114,1772533803785,153.24,7.3e-05,2]
[407530115,1772533804139,153.24,7.5e-05,2]
[407530116,1772533804463,153.24,7.7e-05,2]
[407530117,1772533804766,153.24,7.9e-05,2]
[407530118,1772533805087,153.24,8e-05,2]
[407530119,1772533805387,153.24,8.2e-05,2]
[407530120,1772533805785,153.24,8.4e-05,2]
[407530121,1772533806136,153.24,8.6e-05,2]
[407530122,1772533806503,153.24,8.8e-05,2]
[407530123,1772533807502,153.24,9e-05,2]
[407530124,1772533810914,1814.49226463,9.501e-05,2]
[407530140,1772533832332,-357.38104081,9.703e-05,2]
[407530141,1772533832342,-172.808,9.8e-05,2]
[407530142,1772533832351,-472.1780165,9.997e-05,2]
[407530144,1772533832363,-727.8219835,9.997e-05,2]
[407530146,1772533832372,-500.0,9.998e-05,2]
[407530148,1772533832382,-500.0,9.998e-05,2]
[407530150,1772533832392,-500.0,9.998e-05,2]
[407530152,1772533832401,-431.53158732,9.998e-05,2]
[407530154,1772533832413,-68.46841268,9.998e-05,2]
[407530155,1772533832423,-500.0,9.998e-05,2]
[407530157,1772533832433,-462.13281452,9.998e-05,2]
[407530159,1772533832442,-500.0,9.998e-05,2]
[407530160,1772533832451,-500.0,9.998e-05,2]
[407530162,1772533832461,-488.73645959,9.998e-05,2]
[407530164,1772533832473,-11.26354041,9.998e-05,2]
[407530165,1772533832482,-500.0,9.998e-05,2]
[407530166,1772533832492,-509.5,9.998e-05,2]
[407530167,1772533832502,-500.0,9.998e-05,2]
[407530168,1772533832511,-500.0,9.998e-05,2]
[407530169,1772533832521,-500.0,9.998e-05,2]
[407530170,1772533832532,-300.0,9.999e-05,2]
[407530171,1772533832543,-9623.01682153,0.0001,2]
[407530172,1772533832553,-9511.15943757,0.0001,2]
[407530186,1772533838509,-52749.31519851,0.0001,2]
[407530187,1772533839321,-983.67832508,0.0001,2]
[407530188,1772533839344,-36790.64988736,0.0001,2]
[407530210,1772533840955,-4631.09590182,0.0001,2]
[407530393,1772533843617,-4939.85153769,0.0001,2]
[407530398,1772533844880,-19499.9999996,0.0001,2]
[407530399,1772533844892,-133099.69831302,0.0001,2]
[407530407,1772533846419,-1047.76194729,0.0001,2]
[407530408,1772533846437,-482.64,0.0001,2]
[407530418,1772534111407,296.6732703,9.071e-05,2]
[407530421,1772534195694,216.543058,4.5e-05,2]
[407530422,1772534195913,216.543058,8.999e-05,2]
[407530429,1772534403011,153.24,6.9e-05,2]
[407530430,1772534404101,153.24,7.1e-05,2]
[407530431,1772534404152,153.24,7.3e-05,2]
[407530432,1772534404229,153.24,7.5e-05,2]
[407530433,1772534404333,153.24,7.7e-05,2]
[407530434,1772534404653,153.24,7.9e-05,2]
[407530435,1772534404992,153.24,8.1e-05,2]
[407530436,1772534405308,153.24,8.3e-05,2]
[407530437,1772534405635,153.24,8.5e-05,2]
[407530439,1772534844572,186.5318539,9.262e-05,2]
[407530440,1772534850567,335.42157969,9.262e-05,2]
[407530474,1772535031935,-350.23341999,9.775e-05,2]
[407530476,1772535031947,-172.808,9.8e-05,2]
[407530478,1772535031958,-863.783637,9.962e-05,2]
[407530480,1772535031970,-300.0,9.996e-05,2]
[407530482,1772535031981,-1200.0,9.996e-05,2]
[407530484,1772535031992,-1542.60863556,9.997e-05,2]
[407530486,1772535032006,-1307.63514739,9.997e-05,2]
[407530768,1772535037614,-500.0,9.996e-05,2]
[407530769,1772535037624,-445.5,9.996e-05,2]
[407530770,1772535037633,-500.0,9.996e-05,2]
[407530771,1772535037644,-162.45920161,9.996e-05,2]
[407530772,1772535037653,-500.0,9.996e-05,2]
[407530773,1772535037663,-500.0,9.996e-05,2]
[407530774,1772535037673,-500.0,9.996e-05,2]
[407530775,1772535037682,-500.0,9.996e-05,2]
[407530776,1772535037692,-339.26962754,9.996e-05,2]
[407530777,1772535037702,-322.4641711,9.996e-05,2]
[407530778,1772535037711,-500.0,9.996e-05,2]
[407530779,1772535037720,-500.0,9.996e-05,2]
[407530781,1772535037731,-500.0,9.996e-05,2]
[407530782,1772535037740,-500.0,9.996e-05,2]
[407530783,1772535037750,-500.0,9.996e-05,2]
[407530784,1772535037760,-500.0,9.996e-05,2]
[407530785,1772535037770,-500.0,9.996e-05,2]
[407530786,1772535037779,-500.0,9.996e-05,2]
[407530787,1772535037788,-500.0,9.996e-05,2]
[407530788,1772535037797,-500.0,9.996e-05,2]
[407530789,1772535037808,-500.0,9.996e-05,2]
[407530790,1772535037817,-500.0,9.996e-05,2]
[407530791,1772535037827,-500.0,9.996e-05,2]
[407530792,1772535037838,-500.0,9.996e-05,2]
[407530793,1772535037847,-14317.13006605,9.997e-05,2]
[407530794,1772535037857,-9883.5809696,9.998e-05,2]
[407530795,1772535037867,-644.22926361,9.999e-05,2]
[407530796,1772535037876,-859039.21525293,0.0001,2]
[407530797,1772535037886,-2307.32959582,0.0001,2]
[407530798,1772535037896,-200.0,0.0001,2]
[407530799,1772535037905,-200.0,0.0001,2]
[407530800,1772535037914,-300.0,0.0001,2]
[407530801,1772535037925,-1585.57123967,0.00010001,3]
[407530802,1772535037934,-869.10749709,0.00010001,2]
[407530803,1772535037944,-964.82813732,0.00010083,2]
[407530804,1772535037953,-170.0,0.000101,2]
[407530805,1772535037962,-500.0,0.00010112,2]
[407530806,1772535037972,-300.0,0.00010197,2]
[407530807,1772535037982,-300.0,0.00010197,2]
[407530808,1772535037991,-300.0,0.00010197,2]
[407530809,1772535038001,-300.0,0.00010197,2]
[407530810,1772535038010,-300.0,0.00010197,2]
[407530811,1772535038019,-300.0,0.00010197,2]
[407530812,1772535038028,-300.0,0.00010197,2]
[407530813,1772535038037,-300.0,0.00010197,2]
[407530814,1772535038046,-300.0,0.00010197,2]
[407530815,1772535038056,-300.0,0.00010197,2]
[407530816,1772535038067,-300.0,0.00010197,2]
[407530817,1772535038076,-300.0,0.00010197,2]
[407530818,1772535038085,-300.0,0.00010197,2]
[407530819,1772535038095,-300.0,0.00010197,2]
[407530820,1772535038104,-300.0,0.00010197,2]
[407530821,1772535038114,-150.0,0.00010237,2]
[407530822,1772535038123,-150.0,0.00010237,2]
[407530823,1772535038133,-150.0,0.00010237,2]
[407530824,1772535038143,-150.0,0.00010237,2]
[407530825,1772535038152,-150.0,0.00010237,2]
[407530826,1772535038162,-150.13322958,0.00010237,2]
[407530827,1772535038171,-154.38975738,0.00010237,2]
[407530828,1772535038180,-221.95422689,0.00010237,2]
[407530829,1772535038189,-184.70283208,0.00010237,2]
[407530830,1772535038199,-154.74842087,0.00010237,2]
[407530831,1772535038208,-150.0,0.00010237,2]
[407530832,1772535038217,-150.92390908,0.00010237,2]
[407530833,1772535038227,-150.0,0.00010292,2]
[407530834,1772535038236,-151.703335,0.00010292,2]
[407530835,1772535038246,-207.83475869,0.00010298,2]
[407530836,1772535038255,-150.77608001,0.00010298,2]
[407530837,1772535038264,-150.0,0.00010347,2]
[407530838,1772535038274,-863.783637,0.00010381,2]
[407530839,1772535038283,-150.0,0.00010401,2]
[407530840,1772535038293,-198.65780471,0.00010456,2]
[407530841,1772535038302,-1254.24774207,0.00010477,2]
[407530842,1772535038312,-571.84593962,0.000105,2]
[407530843,1772535038321,-1354.17264696,0.000105,2]
[407530844,1772535038331,-59204.00634158,0.000105,2]
[407530845,1772535038347,-20050.9571131,0.000105,2]
[407530860,1772535040102,-3114.46415926,0.000105,2]
[407530861,1772535040155,-647.17324618,0.000105,2]
[407530879,1772535042676,-1021.47584788,0.000105,2]
[407530880,1772535042740,-20.84402591,0.000105,2]
[407530887,1772535045562,-58014.05732886,0.000105,2]
[407530900,1772536213851,158.87435555,9.237e-05,2]
[407530921,1772536231610,-354.88981888,9.563e-05,2]
[407530923,1772536231620,-86.80723286,9.603e-05,2]
[407531038,1772536239966,546.92692005,9.501e-05,2]
[407531289,1772536242890,-500.0,9.798e-05,2]
[407531291,1772536242900,-203.0611873,9.897e-05,2]
[407531294,1772536242909,-454.7864972,9.903e-05,2]